fUST/lending_fUST_20250501
["ID","MTS","AMOUNT","RATE_DAILY","PERIOD"]
[359462908,1746041312030,-349.00674569,0.00022,2]
[359462909,1746041320655,371.0,0.00026,30]
[359462910,1746041321678,181.059576,0.0002,120]
[359462911,1746041354102,-1281.73482739,0.00024,2]
[359462912,1746041354122,-300.0,0.00024992,2]
[359462913,1746041354141,-12816.26680479,0.00024993,2]
[359462914,1746041354163,-30424.61567169,0.00025,2]
[359462915,1746041354183,-159.95703922,0.000255,2]
[359462916,1746041354219,-20332.37601679,0.00026,30]
[359462917,1746041354240,-420.0,0.00027075,2]
[359462918,1746041354259,-473.1538587,0.000275,2]
[359462919,1746041354279,-587.0,0.00029331,2]
[359462920,1746041354467,-352.27940277,0.0003,2]
[359462921,1746041354489,-233.0425,0.0003034,2]
[359462922,1746041354510,-320.1901891,0.00031725,2]
[359462923,1746041354531,-823.0,0.00031776,2]
[359462924,1746041354554,-24900.0,0.00032048,2]
[359462925,1746041354574,-651.469322,0.00032536,2]
[359462926,1746041354593,-500.0,0.00032973,2]
[359462927,1746041354616,-500.0,0.00032973,5]
[359462928,1746041354636,-502.3738339,0.00032973,5]
[359462929,1746041354656,-500.0,0.00032973,5]
[359462930,1746041354677,-20321.3320356,0.0003299,2]
[359462931,1746041354699,-2718.02926602,0.0003299,2]
[359462932,1746041354719,-10258.1844826,0.00032999,2]
[359462933,1746041354739,-500.0,0.00032999,2]
[359462934,1746041354761,-460.45332089,0.00032999,7]
[359462935,1746041354783,-500.0,0.00032999,7]
[359462936,1746041354805,-500.0,0.00032999,7]
[359462937,1746041354830,-500.0,0.00032999,7]
[359462938,1746041354852,-500.0,0.00032999,7]
[359462939,1746041354876,-500.0,0.00032999,7]
[359462940,1746041354895,-500.0,0.00032999,7]
[359462941,1746041354917,-500.0,0.00032999,7]
[359462942,1746041354937,-500.0,0.00032999,7]
[359462943,1746041354960,-500.0,0.00032999,7]
[359462944,1746041354982,-500.0,0.00032999,7]
[359462945,1746041355007,-500.0,0.00032999,7]
[359462946,1746041355040,-500.0,0.00032999,7]
[359462947,1746041355067,-500.0,0.00032999,7]
[359462948,1746041355090,-500.0,0.00032999,7]
[359462949,1746041355112,-500.0,0.00032999,7]
[359462950,1746041355134,-500.0,0.00032999,7]
[359462951,1746041355157,-500.0,0.00032999,7]
[359462952,1746041355178,-500.0,0.00032999,7]
[359462953,1746041355199,-500.0,0.00032999,7]
[359462954,1746041355221,-500.0,0.00032999,7]
[359462955,1746041355244,-500.0,0.00032999,7]
[359462956,1746041355265,-160.44706049,0.00032999,7]
[359462957,1746041355288,-616.59025132,0.00032999,7]
[359462958,1746041355310,-500.0,0.00032999,7]
[359462959,1746041355333,-500.0,0.00032999,7]
[359462960,1746041355355,-500.0,0.00032999,7]
[359462961,1746041355377,-614.18724257,0.00032999,7]
[359462962,1746041355400,-169.34456162,0.00032999,7]
[359462963,1746041355423,-500.0,0.00032999,7]
[359462964,1746041355445,-500.0,0.00032999,7]
[359462965,1746041355466,-500.0,0.00032999,7]
[359462966,1746041355489,-500.0,0.00032999,7]
[359462967,1746041355511,-500.0,0.00032999,7]
[359462968,1746041355534,-500.0,0.00032999,7]
[359462969,1746041355555,-141914.02180515,0.00033,2]
[359462970,1746041355579,-41014.98,0.00033,30]
[359462971,1746041355601,-795.90323155,0.0003324,2]
[359462972,1746041355622,-337.23673308,0.0003324,2]
[359462973,1746041355645,-4782.44608691,0.00033328,2]
[359462974,1746041356079,-5378.21993089,0.00033328,2]
[359462975,1746041356103,-1359.01463301,0.00033328,2]
[359462976,1746041356125,-10160.6660178,0.00033329,2]
[359462977,1746041356150,-1359.01463301,0.00033329,2]
[359462978,1746041356170,-182.04053198,0.00033338,7]
[359462979,1746041356190,-261.87414013,0.00033338,7]
[359462980,1746041356211,-462.90419817,0.00033338,7]
[359462981,1746041356233,-36593.54917501,0.00033339,5]
[359462982,1746041360120,-20939.15082499,0.00033339,5]
[359462983,1746041360143,-250.0,0.0003334,2]
[359462984,1746041360164,-197.1073919,0.0003334,2]
[359462985,1746041360185,-500.0,0.00033373,5]
[359462986,1746041360206,-500.0,0.00033373,5]
[359462987,1746041360226,-593.15966862,0.00033373,5]
[359462988,1746041360246,-500.0,0.00033373,5]
[359462989,1746041360267,-500.0,0.00033373,5]
[359462990,1746041360289,-500.0,0.00033373,5]
[359462991,1746041360310,-500.0,0.00033373,5]
[359462992,1746041360331,-500.0,0.00033373,5]
[359462993,1746041360352,-500.0,0.00033373,5]
[359462994,1746041360374,-500.0,0.00033373,5]
[359462995,1746041360394,-300.0,0.00033373,5]
[359462996,1746041360415,-403.93904899,0.00033373,5]
[359462997,1746041360436,-809.3236783,0.00033392,2]
[359462998,1746041360458,-664.5697375,0.00033448,2]
[359462999,1746041360478,-241.632448,0.00033611,2]
[359463000,1746041360499,-10160.6660178,0.00033658,2]
[359463001,1746041360520,-1359.01463301,0.00033658,2]
[359463002,1746041360542,-187.402,0.00033667,36]
[359463003,1746041360562,-34324.5650419,0.00033668,2]
[359463004,1746041360582,-6962.27,0.000337,7]
[359463005,1746041360603,-235.12837097,0.00033973,3]
[359463006,1746041360622,-53811.35844804,0.0003399,2]
[359463007,1746041360643,-10256.43676507,0.00034,5]
[359463008,1746041361102,-126746.78051671,0.00034,5]
[359463021,1746041403738,-196.4019829,0.00020973,2]
[359463022,1746041421150,-160.65213813,0.00020973,2]
[359463023,1746041428885,-142.94587797,0.00020973,2]
[359463041,1746041431669,-552.3470109,0.00032287,2]
[359463043,1746041431679,-197.0,0.00032877,3]
[359463045,1746041431688,-500.0,0.00032973,5]
[359463047,1746041431698,-500.0,0.00032973,5]
[359463049,1746041431707,-164.58583996,0.00032999,7]
[359463051,1746041431717,-167.43667325,0.00033338,7]
[359463053,1746041431726,-700.0,0.00033999,3]
[359463055,1746041431736,-400.0,0.00033999,3]
[359463057,1746041431746,-237.0,0.00034,2]
[359463059,1746041431756,-2224.46742468,0.00034,5]
[359463074,1746041432119,-143.52139309,0.00034,5]
[359463075,1746041432131,-32954.69163989,0.00034,5]
[359463076,1746041432141,-2943.09,0.00034,30]
[359463077,1746041432153,-4510.9282027,0.00034122,2]
[359463078,1746041432164,-421.37435881,0.00034122,2]
[359463079,1746041432173,-949.94545981,0.00034215,2]
[359463080,1746041432185,-160.0,0.00034777,3]
[359463081,1746041432195,-337.23673304,0.00034947,2]
[359463082,1746041432206,-10596.66281259,0.00035,2]
[359463083,1746041432216,-2187.7738695,0.00035,30]
[359463084,1746041432226,-3042.89395875,0.00035,30]
[359463085,1746041432235,-2202.66110404,0.00035,10]
[359463117,1746041437706,-4594.57477295,0.000319,2]
[359463119,1746041437716,-3209.50616333,0.00035,10]
[359463121,1746041437726,-300.0,0.00035016,5]
[359463122,1746041437736,-949.94545981,0.0003519,2]
[359463124,1746041437746,-690.39366895,0.00035387,60]
[359463126,1746041437766,-209.60633105,0.00035387,60]
[359463128,1746041437777,-296.519,0.00035616,2]
[359463129,1746041437793,-41014.98,0.000357,30]
[359463130,1746041437804,-1671.06913984,0.000357,7]
[359463132,1746041437816,-3898.75086016,0.000357,7]
[359463133,1746041437827,-160.0,0.000357,30]
[359463134,1746041437839,-12592.61399441,0.00035869,2]
[359463135,1746041437856,-182.04053198,0.00035872,2]
[359463136,1746041437867,-840.90604152,0.00035872,2]
[359463137,1746041437878,-900.0,0.00035935,60]
[359463138,1746041437891,-949.94545981,0.00036165,2]
[359463139,1746041437903,-184.94776029,0.000362,120]
[359463140,1746041437914,-900.0,0.00036483,60]
[359463141,1746041437925,-333.0,0.00036492,3]
[359463142,1746041437936,-337.23673304,0.00036653,2]
[359463143,1746041437948,-500.0,0.00036851,7]
[359463144,1746041437960,-359.18,0.0003688,3]
[359463145,1746041437971,-10160.6660178,0.0003689,3]
[359463146,1746041437982,-1359.01463301,0.0003689,3]
[359463147,1746041437993,-8049.05898806,0.0003689,3]
[359463148,1746041438004,-160.0,0.0003689,3]
[359463149,1746041438015,-8000.0,0.000369,120]
[359463150,1746041438027,-2943.09,0.000369,30]
[359463151,1746041438039,-4594.57477295,0.000369,2]
[359463152,1746041438050,-900.0,0.00037031,60]
[359463153,1746041438063,-241.632448,0.00037036,2]
[359463154,1746041438074,-949.94545981,0.00037141,2]
[359463155,1746041438086,-500.0,0.00037203,5]
[359463156,1746041438098,-164.0,0.0003726,5]
[359463157,1746041438109,-10234.77973827,0.000373,2]
[359463158,1746041438120,-503.0833547,0.00037397,5]
[359463159,1746041438132,-386.43135568,0.00037464,5]
[359463160,1746041438146,-500.0,0.00037464,5]
[359463161,1746041438160,-500.0,0.00037464,5]
[359463162,1746041438174,-500.0,0.00037464,5]
[359463163,1746041438189,-160.0,0.00037557,4]
[359463164,1746041438203,-900.0,0.00037579,60]
[359463165,1746041438217,-12500.0,0.00037662,5]
[359463166,1746041438230,-1007.70028819,0.000378,2]
[359463167,1746041438242,-26764.41114813,0.000378,30]
[359463168,1746041438256,-14250.56885187,0.000378,30]
[359463169,1746041438275,-5569.82,0.000378,7]
[359463170,1746041438289,-8392.78,0.000378,30]
[359463171,1746041438301,-160.0,0.000378,7]
[359463172,1746041438320,-500.0,0.00037816,5]
[359463173,1746041438331,-949.94545981,0.00038116,2]
[359463174,1746041438343,-900.0,0.00038127,60]
[359463175,1746041438355,-10160.6660178,0.00038181,3]
[359463176,1746041438367,-1359.01463301,0.00038181,3]
[359463177,1746041438380,-662.54151234,0.00038191,3]
[359463178,1746041438391,-182.04053198,0.00038191,3]
[359463179,1746041438403,-207.4,0.00038293,2]
[359463180,1746041438414,-154.1030123,0.00038302,4]
[359463181,1746041438427,-545.0,0.0003833,2]
[359463182,1746041438438,-403.0,0.0003833,2]
[359463183,1746041438450,-20321.3320356,0.00038346,3]
[359463184,1746041438462,-2718.02926602,0.00038346,3]
[359463185,1746041438474,-400.0,0.00038356,12]
[359463186,1746041438486,-400.0,0.00038356,12]
[359463187,1746041438497,-400.0,0.00038356,12]
[359463188,1746041438509,-206.73751043,0.00038356,12]
[359463189,1746041438521,-432.89593742,0.00038356,12]
[359463190,1746041438533,-400.0,0.00038356,12]
[359463191,1746041438544,-400.0,0.00038356,12]
[359463192,1746041438555,-543.21663503,0.00038356,12]
[359463193,1746041438566,-400.0,0.00038356,12]
[359463194,1746041438578,-400.0,0.00038356,12]
[359463195,1746041438591,-276.48,0.00038356,12]
[359463196,1746041438603,-400.0,0.00038356,12]
[359463197,1746041438616,-400.0,0.00038356,12]
[359463198,1746041438626,-400.0,0.00038356,12]
[359463199,1746041438638,-400.0,0.00038356,12]
[359463200,1746041438648,-335.18422877,0.00038356,12]
[359463201,1746041438659,-400.0,0.00038356,12]
[359463202,1746041438668,-400.0,0.00038356,12]
[359463203,1746041438678,-400.0,0.00038356,12]
[359463204,1746041438690,-400.0,0.00038356,12]
[359463205,1746041438700,-253.86901575,0.00038356,12]
[359463206,1746041438710,-310.54397361,0.00038356,12]
[359463207,1746041438721,-45.22797636,0.00038356,12]
[359463208,1746041438736,-354.77202364,0.00038356,12]
[359463209,1746041438747,-406.49049039,0.00038356,12]
[359463210,1746041438758,-400.0,0.00038356,12]
[359463211,1746041438774,-400.0,0.00038356,12]
[359463212,1746041438785,-400.0,0.00038356,12]
[359463213,1746041438798,-400.0,0.00038356,12]
[359463214,1746041438809,-503.77,0.00038356,12]
[359463215,1746041438820,-400.0,0.00038356,12]
[359463216,1746041438831,-400.0,0.00038356,12]
[359463217,1746041438842,-400.0,0.00038356,12]
[359463218,1746041438854,-469.24,0.00038356,12]
[359463219,1746041438865,-204.79,0.00038356,12]
[359463220,1746041438878,-400.0,0.00038356,12]
[359463221,1746041438890,-400.0,0.00038356,12]
[359463222,1746041438903,-400.0,0.00038356,12]
[359463223,1746041438914,-400.0,0.00038356,12]
[359463224,1746041438925,-400.0,0.00038356,12]
[359463225,1746041438935,-400.0,0.00038356,12]
[359463226,1746041438946,-400.0,0.00038356,12]
[359463227,1746041438957,-369.83746897,0.00038356,12]
[359463236,1746041440257,-30.16253103,0.00038356,12]
[359463237,1746041440269,-306.96518869,0.00038356,2]
[359463238,1746041440278,-571.65590658,0.00038356,2]
[359463243,1746041440378,-180.08409342,0.00038356,2]
[359463244,1746041440388,-751.74,0.00038356,2]
[359463245,1746041440398,-751.74,0.00038356,2]
[359463246,1746041440408,-751.74,0.00038356,2]
[359463247,1746041440418,-751.74,0.00038356,2]
[359463248,1746041440428,-751.74,0.00038356,2]
[359463249,1746041440438,-751.74,0.00038356,2]
[359463250,1746041440448,-751.74,0.00038356,2]
[359463251,1746041440458,-751.74,0.00038356,2]
[359463252,1746041440468,-751.74,0.00038356,2]
[359463253,1746041440478,-751.74,0.00038356,2]
[359463254,1746041440488,-751.74,0.00038356,2]
[359463255,1746041440498,-751.74,0.00038356,2]
[359463256,1746041440507,-751.74,0.00038356,2]
[359463257,1746041440518,-751.74,0.00038356,2]
[359463258,1746041440527,-751.74,0.00038356,2]
[359463259,1746041440536,-751.74,0.00038356,2]
[359463260,1746041440546,-751.74,0.00038356,2]
[359463261,1746041440555,-751.74,0.00038356,2]
[359463262,1746041440565,-751.74,0.00038356,2]
[359463263,1746041440575,-751.74,0.00038356,2]
[359463264,1746041440584,-751.74,0.00038356,2]
[359463265,1746041440593,-751.74,0.00038356,2]
[359463266,1746041440602,-751.95,0.00038356,2]
[359463267,1746041440612,-400.0,0.00038356,12]
[359463268,1746041440622,-400.0,0.00038356,12]
[359463269,1746041440632,-400.0,0.00038356,12]
[359463270,1746041440642,-400.0,0.00038356,12]
[359463271,1746041440651,-400.0,0.00038356,12]
[359463272,1746041440660,-400.0,0.00038356,12]
[359463273,1746041440670,-400.0,0.00038356,12]
[359463274,1746041440680,-266.01583887,0.00038356,12]
[359463275,1746041440690,-400.0,0.00038356,12]
[359463276,1746041440701,-608.81,0.00038356,12]
[359463277,1746041440711,-608.81,0.00038356,12]
[359463278,1746041440721,-608.81,0.00038356,12]
[359463279,1746041440730,-608.81,0.00038356,12]
[359463280,1746041440740,-608.81,0.00038356,12]
[359463281,1746041440749,-608.81,0.00038356,12]
[359463282,1746041440758,-608.81,0.00038356,12]
[359463283,1746041440768,-608.81,0.00038356,12]
[359463284,1746041440777,-608.81,0.00038356,12]
[359463285,1746041440787,-608.81,0.00038356,12]
[359463286,1746041440796,-608.81,0.00038356,12]
[359463287,1746041440805,-608.81,0.00038356,12]
[359463288,1746041440815,-608.81,0.00038356,12]
[359463289,1746041440824,-608.81,0.00038356,12]
[359463290,1746041440834,-608.81,0.00038356,12]
[359463291,1746041440844,-608.81,0.00038356,12]
[359463292,1746041440856,-608.81,0.00038356,12]
[359463293,1746041440865,-608.81,0.00038356,12]
[359463294,1746041440874,-608.81,0.00038356,12]
[359463295,1746041440884,-608.81,0.00038356,12]
[359463296,1746041440894,-608.81,0.00038356,12]
[359463297,1746041440903,-608.81,0.00038356,12]
[359463298,1746041440912,-608.81,0.00038356,12]
[359463299,1746041440923,-608.98605768,0.00038356,12]
[359463300,1746041440932,-400.0,0.00038356,12]
[359463301,1746041440942,-525.30304,0.00038356,12]
[359463302,1746041440952,-400.0,0.00038356,12]
[359463303,1746041440961,-269.56,0.00038356,12]
[359463304,1746041440971,-432.99,0.00038356,12]
[359463305,1746041440981,-400.0,0.00038356,12]
[359463306,1746041440990,-400.0,0.00038356,12]
[359463307,1746041441000,-400.0,0.00038356,12]
[359463308,1746041441011,-543.84,0.00038356,12]
[359463309,1746041441021,-400.0,0.00038356,12]
[359463310,1746041441031,-400.0,0.00038356,12]
[359463311,1746041441041,-400.0,0.00038356,12]
[359463312,1746041441051,-400.0,0.00038356,12]
[359463313,1746041441061,-400.0,0.00038356,12]
[359463314,1746041441070,-400.0,0.00038356,12]
[359463315,1746041441080,-400.0,0.00038356,12]
[359463316,1746041441090,-400.0,0.00038356,12]
[359463317,1746041441100,-400.0,0.00038356,12]
[359463318,1746041441111,-400.0,0.00038356,12]
[359463319,1746041441120,-400.0,0.00038356,12]
[359463320,1746041441130,-400.0,0.00038356,12]
[359463321,1746041441141,-289.64,0.00038356,12]
[359463322,1746041441150,-400.0,0.00038356,12]
[359463323,1746041441160,-400.0,0.00038356,12]
[359463324,1746041441170,-400.0,0.00038356,12]
[359463325,1746041441181,-400.0,0.00038356,12]
[359463326,1746041441190,-531.0,0.00038356,12]
[359463327,1746041441201,-400.0,0.00038356,12]
[359463328,1746041441211,-400.0,0.00038356,12]
[359463329,1746041441220,-378.36,0.00038356,12]
[359463330,1746041441230,-400.0,0.00038356,12]
[359463331,1746041441240,-400.0,0.00038356,12]
[359463332,1746041441249,-400.0,0.00038356,12]
[359463333,1746041441259,-400.0,0.00038356,12]
[359463334,1746041441269,-400.0,0.00038356,12]
[359463335,1746041441279,-341.87194417,0.00038356,12]
[359463336,1746041441288,-400.0,0.00038356,12]
[359463337,1746041441298,-400.0,0.00038356,12]
[359463338,1746041441307,-400.0,0.00038356,12]
[359463339,1746041441317,-400.0,0.00038356,12]
[359463340,1746041441327,-400.0,0.00038356,12]
[359463341,1746041441336,-400.0,0.00038356,12]
[359463342,1746041441346,-400.0,0.00038356,12]
[359463343,1746041441355,-400.0,0.00038356,12]
[359463344,1746041441364,-358.2296495,0.00038356,12]
[359463345,1746041441373,-400.0,0.00038356,12]
[359463346,1746041441384,-400.0,0.00038356,12]
[359463347,1746041441393,-400.0,0.00038356,12]
[359463348,1746041441402,-400.0,0.00038356,12]
[359463349,1746041441412,-527.56081658,0.00038356,12]
[359463350,1746041441421,-400.0,0.00038356,12]
[359463351,1746041441431,-400.0,0.00038356,12]
[359463352,1746041441440,-400.0,0.00038356,12]
[359463353,1746041441451,-358.2,0.00038356,12]
[359463354,1746041441461,-400.0,0.00038356,12]
[359463355,1746041441472,-400.0,0.00038356,12]
[359463356,1746041441481,-502.05243072,0.00038356,12]
[359463357,1746041441491,-400.0,0.00038356,12]
[359463358,1746041441501,-400.0,0.00038356,12]
[359463359,1746041441513,-400.0,0.00038356,12]
[359463360,1746041441522,-400.0,0.00038356,12]
[359463361,1746041441532,-400.0,0.00038356,12]
[359463362,1746041441542,-400.0,0.00038356,12]
[359463363,1746041441553,-400.0,0.00038356,12]
[359463364,1746041441564,-400.0,0.00038356,12]
[359463365,1746041441573,-400.0,0.00038356,12]
[359463366,1746041441583,-400.0,0.00038356,12]
[359463367,1746041441594,-400.0,0.00038356,12]
[359463368,1746041441603,-400.0,0.00038356,12]
[359463369,1746041441613,-235.76,0.00038356,12]
[359463370,1746041441624,-400.0,0.00038356,12]
[359463371,1746041441634,-400.0,0.00038356,12]
[359463372,1746041441644,-501.02530251,0.00038356,12]
[359463373,1746041441653,-400.0,0.00038356,12]
[359463374,1746041441662,-400.0,0.00038356,12]
[359463375,1746041441671,-400.0,0.00038356,12]
[359463376,1746041441683,-541.77,0.00038356,12]
[359463377,1746041441693,-400.0,0.00038356,12]
[359463378,1746041441703,-400.0,0.00038356,12]
[359463379,1746041441714,-535.41,0.00038356,12]
[359463380,1746041441725,-400.0,0.00038356,12]
[359463381,1746041441735,-400.0,0.00038356,12]
[359463382,1746041441745,-400.0,0.00038356,12]
[359463383,1746041441755,-400.0,0.00038356,12]
[359463384,1746041441766,-400.0,0.00038356,12]
[359463385,1746041441776,-546.74,0.00038356,12]
[359463386,1746041441786,-400.0,0.00038356,12]
[359463387,1746041441796,-400.0,0.00038356,12]
[359463388,1746041441805,-400.0,0.00038356,12]
[359463389,1746041441815,-400.0,0.00038356,12]
[359463390,1746041441825,-400.0,0.00038356,12]
[359463391,1746041441835,-400.0,0.00038356,12]
[359463392,1746041441848,-400.0,0.00038356,12]
[359463393,1746041441859,-400.0,0.00038356,12]
[359463394,1746041441870,-400.0,0.00038356,12]
[359463395,1746041441879,-400.0,0.00038356,12]
[359463396,1746041441891,-393.29,0.00038356,12]
[359463397,1746041441902,-400.0,0.00038356,12]
[359463398,1746041441914,-400.0,0.00038356,12]
[359463399,1746041441926,-400.0,0.00038356,12]
[359463400,1746041441938,-302.49,0.00038356,12]
[359463401,1746041441949,-400.0,0.00038356,12]
[359463402,1746041441959,-400.0,0.00038356,12]
[359463403,1746041441970,-400.0,0.00038356,12]
[359463404,1746041441980,-400.0,0.00038356,12]
[359463405,1746041441991,-400.0,0.00038356,12]
[359463406,1746041442001,-400.0,0.00038356,12]
[359463407,1746041442011,-400.0,0.00038356,12]
[359463408,1746041442021,-400.0,0.00038356,12]
[359463409,1746041442031,-400.0,0.00038356,12]
[359463410,1746041442041,-400.0,0.00038356,12]
[359463411,1746041442053,-400.0,0.00038356,12]
[359463412,1746041442062,-400.0,0.00038356,12]
[359463413,1746041442073,-400.0,0.00038356,12]
[359463414,1746041442083,-400.0,0.00038356,12]
[359463415,1746041442093,-400.0,0.00038356,12]
[359463416,1746041442102,-483.2,0.00038356,12]
[359463417,1746041442112,-400.0,0.00038356,12]
[359463418,1746041442121,-201.79,0.00038356,12]
[359463419,1746041442131,-400.0,0.00038356,12]
[359463420,1746041442141,-400.0,0.00038356,12]
[359463421,1746041442152,-400.0,0.00038356,12]
[359463422,1746041442162,-400.0,0.00038356,12]
[359463423,1746041442171,-400.0,0.00038356,12]
[359463424,1746041442182,-331.1486,0.00038356,12]
[359463425,1746041442192,-400.0,0.00038356,12]
[359463426,1746041442203,-400.0,0.00038356,12]
[359463427,1746041442214,-400.0,0.00038356,12]
[359463428,1746041442225,-400.0,0.00038356,12]
[359463429,1746041442235,-400.0,0.00038356,12]
[359463431,1746041442245,-400.0,0.00038356,12]
[359463432,1746041442256,-400.0,0.00038356,12]
[359463433,1746041442267,-400.0,0.00038356,12]
[359463434,1746041442276,-400.0,0.00038356,12]
[359463435,1746041442286,-273.15,0.00038356,12]
[359463436,1746041442296,-260.28,0.00038356,12]
[359463437,1746041442306,-400.0,0.00038356,12]
[359463438,1746041442318,-400.0,0.00038356,12]
[359463439,1746041442328,-400.0,0.00038356,12]
[359463440,1746041442339,-400.0,0.00038356,12]
[359463442,1746041442348,-400.0,0.00038356,12]
[359463443,1746041442358,-400.0,0.00038356,12]
[359463444,1746041442367,-400.0,0.00038356,12]
[359463445,1746041442377,-400.0,0.00038356,12]
[359463447,1746041442386,-400.0,0.00038356,12]
[359463449,1746041442396,-344.31,0.00038356,12]
[359463452,1746041442406,-400.0,0.00038356,12]
[359463454,1746041442415,-160.47,0.00038356,12]
[359463455,1746041442424,-400.0,0.00038356,12]
[359463456,1746041442433,-400.0,0.00038356,12]
[359463458,1746041442443,-400.0,0.00038356,12]
[359463459,1746041442452,-400.0,0.00038356,12]
[359463460,1746041442461,-400.0,0.00038356,12]
[359463461,1746041442470,-400.0,0.00038356,12]
[359463462,1746041442480,-400.0,0.00038356,12]
[359463463,1746041442490,-400.0,0.00038356,12]
[359463464,1746041442499,-400.0,0.00038356,12]
[359463465,1746041442509,-400.0,0.00038356,12]
[359463466,1746041442519,-400.0,0.00038356,12]
[359463467,1746041442528,-218.64,0.00038356,12]
[359463468,1746041442539,-400.0,0.00038356,12]
[359463469,1746041442548,-400.0,0.00038356,12]
[359463470,1746041442558,-400.0,0.00038356,12]
[359463472,1746041442567,-400.0,0.00038356,12]
[359463473,1746041442577,-400.0,0.00038356,12]
[359463474,1746041442587,-400.0,0.00038356,12]
[359463475,1746041442596,-400.0,0.00038356,12]
[359463476,1746041442606,-400.0,0.00038356,12]
[359463478,1746041442615,-225.79,0.00038356,12]
[359463479,1746041442624,-400.0,0.00038356,12]
[359463480,1746041442634,-400.0,0.00038356,12]
[359463481,1746041442644,-531.36,0.00038356,12]
[359463482,1746041442653,-400.0,0.00038356,12]
[359463483,1746041442663,-400.0,0.00038356,12]
[359463484,1746041442672,-210.88,0.00038356,12]
[359463486,1746041442681,-400.0,0.00038356,12]
[359463487,1746041442691,-400.0,0.00038356,12]
[359463488,1746041442700,-400.0,0.00038356,12]
[359463489,1746041442710,-400.0,0.00038356,12]
[359463490,1746041442719,-400.0,0.00038356,12]
[359463491,1746041442729,-341.01,0.00038356,12]
[359463492,1746041442738,-332.75040641,0.00038356,12]
[359463493,1746041442748,-400.0,0.00038356,12]
[359463494,1746041442758,-400.0,0.00038356,12]
[359463495,1746041442768,-400.0,0.00038356,12]
[359463496,1746041442778,-400.0,0.00038356,12]
[359463498,1746041442787,-308.73,0.00038356,12]
[359463500,1746041442796,-400.0,0.00038356,12]
[359463502,1746041442805,-220.88542474,0.00038356,12]
[359463503,1746041442815,-207.83954205,0.00038356,12]
[359463504,1746041442825,-204.74399732,0.00038356,12]
[359463505,1746041442834,-400.0,0.00038356,12]
[359463507,1746041442843,-217.86,0.00038356,12]
[359463508,1746041442855,-400.0,0.00038356,12]
[359463509,1746041442865,-309.48302609,0.00038356,12]
[359463510,1746041442874,-400.0,0.00038356,12]
[359463511,1746041442883,-400.0,0.00038356,12]
[359463512,1746041442893,-400.0,0.00038356,12]
[359463513,1746041442903,-400.0,0.00038356,12]
[359463514,1746041442913,-400.0,0.00038356,12]
[359463515,1746041442924,-400.0,0.00038356,12]
[359463516,1746041442933,-400.0,0.00038356,12]
[359463517,1746041442942,-260.63,0.00038356,12]
[359463519,1746041442952,-400.0,0.00038356,12]
[359463520,1746041442961,-500.05,0.00038356,12]
[359463521,1746041442971,-308.40727895,0.00038356,12]
[359463522,1746041442980,-161.1100905,0.00038356,2]
[359463523,1746041442989,-337.23673304,0.0003836,2]
[359463524,1746041442999,-500.0,0.00038373,5]